fUST/lending_fUST_20250523
["ID","MTS","AMOUNT","RATE_DAILY","PERIOD"]
[362086311,1747986643877,-151.0,0.00016712,2]
[362086312,1747986643887,-151.0,0.00016712,2]
[362086313,1747986643897,-430.0,0.00016712,2]
[362086314,1747986643907,-151.0,0.00016712,2]
[362086315,1747986643917,-151.0,0.00016712,2]
[362086316,1747986643927,-430.0,0.00016712,2]
[362086317,1747986643936,-430.0,0.00016712,2]
[362086318,1747986643946,-489.75281253,0.00016712,2]
[362086319,1747986643956,-400.0,0.00016712,2]
[362086320,1747986643966,-430.0,0.00016712,2]
[362086321,1747986643977,-430.0,0.00016712,2]
[362086322,1747986643986,-430.0,0.00016712,2]
[362086323,1747986643996,-430.0,0.00016712,2]
[362086324,1747986644006,-479.20566831,0.00016712,2]
[362086325,1747986644016,-389.50258221,0.00016712,2]
[362086326,1747986644026,-430.0,0.00016712,2]
[362086327,1747986644035,-430.0,0.00016712,2]
[362086328,1747986644045,-151.0,0.00016712,2]
[362086329,1747986644055,-151.0,0.00016712,2]
[362086330,1747986644065,-408.35891881,0.00016712,2]
[362086331,1747986644075,-343.42695898,0.00016712,2]
[362086332,1747986644085,-172.11506988,0.00016712,2]
[362086333,1747986644095,-1255.488957,0.00016712,2]
[362086334,1747986644105,-406.8307858,0.00016712,2]
[362086335,1747986644115,-1255.488957,0.00016712,2]
[362086336,1747986644125,-151.0,0.00016712,2]
[362086337,1747986644134,-151.0,0.00016712,2]
[362086338,1747986644143,-523.21392208,0.00016712,2]
[362086339,1747986644153,-430.0,0.00016712,2]
[362086340,1747986644164,-430.0,0.00016712,2]
[362086341,1747986644174,-440.22610968,0.00016712,2]
[362086342,1747986644184,-450.0,0.00016712,2]
[362086343,1747986644194,-151.0,0.00016712,2]
[362086344,1747986644204,-151.0,0.00016712,2]
[362086345,1747986644214,-268.38649158,0.00016712,2]
[362086346,1747986644224,-151.0,0.00016712,2]
[362086347,1747986644233,-151.0,0.00016712,2]
[362086348,1747986644244,-430.0,0.00016712,2]
[362086349,1747986644254,-430.0,0.00016712,2]
[362086350,1747986644264,-381.221712,0.00016712,2]
[362086351,1747986644274,-381.221712,0.00016712,2]
[362086352,1747986644283,-381.221712,0.00016712,2]
[362086353,1747986644293,-381.221712,0.00016712,2]
[362086354,1747986644304,-430.0,0.00016712,2]
[362086355,1747986644313,-430.0,0.00016712,2]
[362086356,1747986644323,-430.0,0.00016712,2]
[362086357,1747986644333,-430.0,0.00016712,2]
[362086358,1747986644342,-430.0,0.00016712,2]
[362086359,1747986644352,-373.28927229,0.00016712,2]
[362086360,1747986644362,-470.0,0.00016712,2]
[362086361,1747986644371,-470.0,0.00016712,2]
[362086362,1747986644381,-470.0,0.00016712,2]
[362086363,1747986644390,-430.0,0.00016712,2]
[362086364,1747986644400,-192.608024,0.00016712,2]
[362086365,1747986644409,-192.608024,0.00016712,2]
[362086366,1747986644419,-454.0,0.00016712,2]
[362086367,1747986644428,-430.0,0.00016712,2]
[362086368,1747986644438,-192.608024,0.00016712,2]
[362086369,1747986644447,-192.608024,0.00016712,2]
[362086370,1747986644457,-457.85010458,0.00016712,2]
[362086371,1747986644466,-443.37612576,0.00016712,2]
[362086372,1747986644475,-500.0,0.00016712,2]
[362086373,1747986644485,-432.79653453,0.00016712,2]
[362086374,1747986644498,-240.74246429,0.00016712,2]
[362086375,1747986644507,-331.16703617,0.00016712,2]
[362086376,1747986644516,-575.65874398,0.00016712,2]
[362086377,1747986644526,-384.52946,0.00016712,2]
[362086378,1747986644536,-384.52946,0.00016712,2]
[362086379,1747986644546,-430.0,0.00016712,2]
[362086380,1747986644555,-384.52946,0.00016712,2]
[362086381,1747986644565,-430.0,0.00016712,2]
[362086382,1747986644575,-384.52946,0.00016712,2]
[362086383,1747986644586,-151.0,0.00016712,2]
[362086384,1747986644595,-151.866833,0.00016712,2]
[362086385,1747986644605,-430.0,0.00016712,2]
[362086386,1747986644614,-470.0,0.00016712,2]
[362086387,1747986644624,-430.0,0.00016712,2]
[362086388,1747986644634,-430.0,0.00016712,2]
[362086389,1747986644644,-430.0,0.00016712,2]
[362086390,1747986644654,-151.0,0.00016712,2]
[362086391,1747986644664,-151.0,0.00016712,2]
[362086392,1747986644675,-151.0,0.00016712,2]
[362086393,1747986644686,-283.853631,0.00016712,2]
[362086394,1747986644696,-430.0,0.00016712,2]
[362086395,1747986644706,-151.0,0.00016712,2]
[362086396,1747986644716,-151.0,0.00016712,2]
[362086397,1747986644726,-461.70141957,0.00016712,2]
[362086398,1747986644738,-151.0,0.00016712,2]
[362086399,1747986644749,-151.0,0.00016712,2]
[362086400,1747986644758,-430.0,0.00016712,2]
[362086401,1747986644767,-497.54663862,0.00016712,2]
[362086402,1747986644778,-389.32631555,0.00016712,2]
[362086403,1747986644788,-430.0,0.00016712,2]
[362086404,1747986644798,-430.0,0.00016712,2]
[362086405,1747986644807,-420.0,0.00016712,2]
[362086406,1747986644817,-430.0,0.00016712,2]
[362086407,1747986644827,-430.0,0.00016712,2]
[362086408,1747986644837,-322.81033602,0.00016712,2]
[362086409,1747986644846,-430.0,0.00016712,2]
[362086410,1747986644856,-430.0,0.00016712,2]
[362086411,1747986644866,-430.0,0.00016712,2]
[362086412,1747986644876,-430.0,0.00016712,2]
[362086414,1747986644886,-430.0,0.00016712,2]
[362086415,1747986644896,-430.0,0.00016712,2]
[362086416,1747986644905,-430.0,0.00016712,2]
[362086417,1747986644915,-207.898629,0.00016712,2]
[362086418,1747986644924,-207.898629,0.00016712,2]
[362086419,1747986644934,-430.0,0.00016712,2]
[362086420,1747986644943,-430.0,0.00016712,2]
[362086421,1747986644953,-207.898629,0.00016712,2]
[362086422,1747986644963,-207.898629,0.00016712,2]
[362086423,1747986644973,-430.0,0.00016712,2]
[362086424,1747986644983,-430.0,0.00016712,2]
[362086425,1747986644992,-430.0,0.00016712,2]
[362086426,1747986645001,-430.0,0.00016712,2]
[362086427,1747986645011,-430.0,0.00016712,2]
[362086428,1747986645021,-430.0,0.00016712,2]
[362086429,1747986645031,-430.0,0.00016712,2]
[362086430,1747986645041,-430.0,0.00016712,2]
[362086431,1747986645050,-464.13303301,0.00016712,2]
[362086432,1747986645060,-430.0,0.00016712,2]
[362086433,1747986645070,-430.0,0.00016712,2]
[362086434,1747986645080,-430.0,0.00016712,2]
[362086435,1747986645089,-151.0,0.00016712,2]
[362086436,1747986645099,-151.380611,0.00016712,2]
[362086437,1747986645109,-408.69212648,0.00016712,2]
[362086438,1747986645118,-627.55,0.00016712,2]
[362086439,1747986645128,-151.0,0.00016712,2]
[362086440,1747986645138,-151.0,0.00016712,2]
[362086441,1747986645148,-380.4769843,0.00016712,2]
[362086442,1747986645158,-378.72465184,0.00016712,2]
[362086443,1747986645167,-430.0,0.00016712,2]
[362086444,1747986645176,-300.65396975,0.00016712,2]
[362086445,1747986645186,-430.0,0.00016712,2]
[362086446,1747986645196,-430.0,0.00016712,2]
[362086447,1747986645205,-430.0,0.00016712,2]
[362086448,1747986645215,-430.0,0.00016712,2]
[362086449,1747986645224,-430.0,0.00016712,2]
[362086450,1747986645234,-430.0,0.00016712,2]
[362086451,1747986645243,-430.0,0.00016712,2]
[362086452,1747986645253,-573.11544977,0.00016712,2]
[362086453,1747986645263,-506.23,0.00016712,2]
[362086454,1747986645273,-529.21401769,0.00016712,2]
[362086455,1747986645283,-430.0,0.00016712,2]
[362086456,1747986645292,-151.0,0.00016712,2]
[362086457,1747986645303,-151.0,0.00016712,2]
[362086458,1747986645314,-430.0,0.00016712,2]
[362086459,1747986645324,-430.0,0.00016712,2]
[362086460,1747986645334,-430.0,0.00016712,2]
[362086461,1747986645345,-324.80952148,0.00016712,2]
[362086462,1747986645355,-430.0,0.00016712,2]
[362086463,1747986645365,-430.0,0.00016712,2]
[362086464,1747986645375,-430.0,0.00016712,2]
[362086465,1747986645384,-421.23889422,0.00016712,2]
[362086466,1747986645395,-326.98220325,0.00016712,2]
[362086467,1747986645406,-324.85600833,0.00016712,2]
[362086468,1747986645418,-430.0,0.00016712,2]
[362086469,1747986645429,-430.0,0.00016712,2]
[362086470,1747986645439,-204.02649153,0.00016712,2]
[362086471,1747986645449,-430.0,0.00016712,2]
[362086472,1747986645458,-792.87,0.00016712,2]
[362086473,1747986645469,-430.0,0.00016712,2]
[362086474,1747986645479,-632.28,0.00016712,2]
[362086475,1747986645490,-469.37981876,0.00016712,2]
[362086476,1747986645502,-743.79,0.00016712,2]
[362086477,1747986645514,-430.0,0.00016712,2]
[362086478,1747986645523,-151.0,0.00016712,2]
[362086479,1747986645535,-151.0,0.00016712,2]
[362086480,1747986645544,-430.0,0.00016712,2]
[362086481,1747986645554,-430.0,0.00016712,2]
[362086482,1747986645563,-430.0,0.00016712,2]
[362086483,1747986645574,-430.0,0.00016712,2]
[362086484,1747986645585,-323.39045581,0.00016712,2]
[362086485,1747986645597,-430.0,0.00016712,2]
[362086486,1747986645607,-430.0,0.00016712,2]
[362086487,1747986645618,-430.0,0.00016712,2]
[362086488,1747986645629,-323.4688397,0.00016712,2]
[362086489,1747986645639,-1029.770197,0.00016712,2]
[362086490,1747986645649,-1029.770197,0.00016712,2]
[362086491,1747986645660,-165.54550337,0.00016712,2]
[362086492,1747986645669,-2056.54,0.00016712,2]
[362086493,1747986645679,-1029.770197,0.00016712,2]
[362086494,1747986645688,-1029.770197,0.00016712,2]
[362086495,1747986645697,-583.55,0.00016712,2]
[362086496,1747986645707,-751.02,0.00016712,2]
[362086497,1747986645717,-324.05403766,0.00016712,2]
[362086498,1747986645726,-746.21,0.00016712,2]
[362086499,1747986645780,-332.22336057,0.00016712,2]
[362086500,1747986645790,-450.0,0.00016712,2]
[362086501,1747986645801,-249.29047519,0.00016712,2]
[362086502,1747986645810,-430.0,0.00016712,2]
[362086503,1747986645820,-427.65169584,0.00016712,2]
[362086504,1747986645829,-430.0,0.00016712,2]
[362086505,1747986645839,-626.41,0.00016712,2]
[362086506,1747986645849,-302.09086665,0.00016712,2]
[362086507,1747986645859,-430.0,0.00016712,2]
[362086508,1747986645869,-430.0,0.00016712,2]
[362086509,1747986645879,-430.0,0.00016712,2]
[362086510,1747986645888,-494.43,0.00016712,2]
[362086511,1747986645898,-430.0,0.00016712,2]
[362086512,1747986645908,-430.0,0.00016712,2]
[362086513,1747986645918,-427.21907069,0.00016712,2]
[362086514,1747986645928,-430.0,0.00016712,2]
[362086515,1747986645938,-430.0,0.00016712,2]
[362086516,1747986645948,-430.0,0.00016712,2]
[362086517,1747986645958,-430.0,0.00016712,2]
[362086518,1747986645968,-420.0,0.00016712,2]
[362086519,1747986645977,-430.0,0.00016712,2]
[362086520,1747986645987,-430.0,0.00016712,2]
[362086521,1747986645996,-422.09095317,0.00016712,2]
[362086522,1747986646006,-430.0,0.00016712,2]
[362086523,1747986646016,-326.28235776,0.00016712,2]
[362086524,1747986646025,-430.0,0.00016712,2]
[362086525,1747986646035,-330.21272539,0.00016712,2]
[362086526,1747986646045,-323.5658602,0.00016712,2]
[362086527,1747986646056,-481.02456791,0.00016712,2]
[362086528,1747986646067,-430.0,0.00016712,2]
[362086529,1747986646078,-420.0,0.00016712,2]
[362086530,1747986646088,-430.0,0.00016712,2]
[362086531,1747986646097,-2083.46,0.00016712,2]
[362086532,1747986646107,-324.47274431,0.00016712,2]
[362086533,1747986646118,-430.0,0.00016712,2]
[362086535,1747986646128,-430.0,0.00016712,2]
[362086536,1747986646139,-430.0,0.00016712,2]
[362086537,1747986646148,-323.0391236,0.00016712,2]
[362086538,1747986646158,-326.14536547,0.00016712,2]
[362086539,1747986646168,-430.0,0.00016712,2]
[362086540,1747986646177,-393.90702719,0.00016712,2]
[362086541,1747986646187,-656.86,0.00016712,2]
[362086542,1747986646197,-322.51700316,0.00016712,2]
[362086543,1747986646207,-430.0,0.00016712,2]
[362086545,1747986646218,-323.9319657,0.00016712,2]
[362086546,1747986646228,-331.65880095,0.00016712,2]
[362086548,1747986646238,-470.0,0.00016712,2]
[362086550,1747986646248,-778.2,0.00016712,2]
[362086551,1747986646258,-430.0,0.00016712,2]
[362086553,1747986646268,-430.0,0.00016712,2]
[362086554,1747986646277,-323.47359478,0.00016712,2]
[362086556,1747986646287,-1637.49,0.00016712,2]
[362086558,1747986646297,-687.300448,0.00016712,2]
[362086559,1747986646307,-687.300448,0.00016712,2]
[362086561,1747986646317,-687.300448,0.00016712,2]
[362086562,1747986646327,-687.300448,0.00016712,2]
[362086564,1747986646336,-430.0,0.00016712,2]
[362086566,1747986646346,-430.0,0.00016712,2]
[362086568,1747986646356,-937.38325466,0.00016851,2]
[362086569,1747986646367,-622.32,0.00016985,2]
[362086571,1747986646377,-622.32,0.00016985,2]
[362086574,1747986646386,-622.32,0.00016985,2]
[362086575,1747986646396,-151.0,0.00016986,2]
[362086577,1747986646406,-153.148394,0.00016986,2]
[362086578,1747986646416,-430.0,0.00016986,2]
[362086580,1747986646425,-151.0,0.00016986,2]
[362086581,1747986646436,-151.0,0.00016986,2]
[362086583,1747986646445,-430.0,0.00016986,2]
[362086584,1747986646455,-430.0,0.00016986,2]
[362086586,1747986646464,-430.0,0.00016986,2]
[362086588,1747986646474,-259.36189208,0.00016986,2]
[362086590,1747986646485,-151.0,0.00016986,2]
[362086591,1747986646498,-510.0,0.00016986,2]
[362086593,1747986646508,-430.0,0.00016986,2]
[362086595,1747986646518,-1255.488957,0.00016986,2]
[362086597,1747986646528,-1255.488957,0.00016986,2]
[362086598,1747986646539,-151.0,0.00016986,2]
[362086600,1747986646548,-151.0,0.00016986,2]
[362086602,1747986646559,-576.68,0.00016986,2]
[362086603,1747986646569,-450.0,0.00016986,2]
[362086604,1747986646579,-430.0,0.00016986,2]
[362086605,1747986646589,-430.0,0.00016986,2]
[362086606,1747986646600,-384.52946,0.00016986,2]
[362086608,1747986646610,-430.0,0.00016986,2]
[362086610,1747986646621,-384.52946,0.00016986,2]
[362086612,1747986646631,-430.0,0.00016986,2]
[362086614,1747986646641,-151.0,0.00016986,2]
[362086616,1747986646653,-430.0,0.00016986,2]
[362086618,1747986646663,-210.547271,0.00016986,2]
[362086620,1747986646673,-151.0,0.00016986,2]
[362086621,1747986646683,-430.0,0.00016986,2]
[362086622,1747986646692,-450.0,0.00016986,2]
[362086623,1747986646704,-430.0,0.00016986,2]
[362086624,1747986646715,-430.0,0.00016986,2]
[362086625,1747986646724,-430.0,0.00016986,2]
[362086626,1747986646734,-430.0,0.00016986,2]
[362086628,1747986646744,-430.0,0.00016986,2]
[362086630,1747986646758,-430.0,0.00016986,2]
[362086631,1747986646768,-207.898629,0.00016986,2]
[362086633,1747986646781,-430.0,0.00016986,2]
[362086636,1747986646797,-207.898629,0.00016986,2]
[362086637,1747986646808,-420.0,0.00016986,2]
[362086640,1747986646821,-430.0,0.00016986,2]
[362086641,1747986646831,-167.13163836,0.00016986,2]
[362086642,1747986646841,-430.0,0.00016986,2]
[362086643,1747986646851,-430.0,0.00016986,2]
[362086644,1747986646861,-430.0,0.00016986,2]
[362086645,1747986646871,-430.0,0.00016986,2]
[362086646,1747986646880,-430.0,0.00016986,2]
[362086647,1747986646891,-430.0,0.00016986,2]
[362086648,1747986646900,-430.0,0.00016986,2]
[362086649,1747986646911,-627.55,0.00016986,2]
[362086650,1747986646921,-151.0,0.00016986,2]
[362086651,1747986646933,-430.0,0.00016986,2]
[362086652,1747986646942,-430.0,0.00016986,2]
[362086653,1747986646953,-430.0,0.00016986,2]
[362086654,1747986646962,-430.0,0.00016986,2]
[362086655,1747986646973,-430.0,0.00016986,2]
[362086656,1747986646984,-506.23,0.00016986,2]
[362086657,1747986646996,-430.0,0.00016986,2]
[362086658,1747986647005,-151.0,0.00016986,2]
[362086659,1747986647015,-430.0,0.00016986,2]
[362086660,1747986647025,-430.0,0.00016986,2]
[362086661,1747986647035,-430.0,0.00016986,2]
[362086662,1747986647045,-430.0,0.00016986,2]
[362086663,1747986647054,-430.0,0.00016986,2]
[362086664,1747986647064,-792.87,0.00016986,2]
[362086665,1747986647074,-632.28,0.00016986,2]
[362086666,1747986647085,-743.79,0.00016986,2]
[362086667,1747986647094,-450.0,0.00016986,2]
[362086668,1747986647104,-151.0,0.00016986,2]
[362086669,1747986647114,-430.0,0.00016986,2]
[362086670,1747986647124,-430.0,0.00016986,2]
[362086671,1747986647133,-430.0,0.00016986,2]
[362086672,1747986647143,-450.0,0.00016986,2]
[362086673,1747986647152,-430.0,0.00016986,2]
[362086674,1747986647162,-430.0,0.00016986,2]
[362086675,1747986647172,-1029.770197,0.00016986,2]
[362086676,1747986647182,-2056.54,0.00016986,2]
[362086677,1747986647192,-1029.770197,0.00016986,2]
[362086678,1747986647202,-583.55,0.00016986,2]
[362086679,1747986647212,-751.02,0.00016986,2]
[362086680,1747986647222,-746.21,0.00016986,2]
[362086681,1747986647232,-430.0,0.00016986,2]
[362086682,1747986647241,-626.41,0.00016986,2]
[362086683,1747986647251,-430.0,0.00016986,2]
[362086684,1747986647261,-477.44513877,0.00016986,2]
[362086685,1747986647272,-430.0,0.00016986,2]
[362086686,1747986647281,-494.43,0.00016986,2]
[362086687,1747986647291,-430.0,0.00016986,2]
[362086688,1747986647301,-430.0,0.00016986,2]
[362086689,1747986647311,-450.0,0.00016986,2]
[362086690,1747986647322,-430.0,0.00016986,2]
[362086691,1747986647332,-430.0,0.00016986,2]
[362086692,1747986647342,-430.0,0.00016986,2]
[362086693,1747986647352,-430.0,0.00016986,2]
[362086694,1747986647362,-430.0,0.00016986,2]
[362086695,1747986647371,-2083.46,0.00016986,2]
[362086696,1747986647382,-471.49425495,0.00016986,2]
[362086697,1747986647392,-430.0,0.00016986,2]
[362086698,1747986647404,-430.0,0.00016986,2]
[362086699,1747986647413,-656.86,0.00016986,2]
[362086700,1747986647423,-778.2,0.00016986,2]
[362086701,1747986647433,-430.0,0.00016986,2]
[362086702,1747986647446,-1637.49,0.00016986,2]
[362086703,1747986647456,-687.300448,0.00016986,2]
[362086704,1747986647467,-687.300448,0.00016986,2]
[362086705,1747986647476,-430.0,0.00016986,2]
[362086706,1747986647486,-213.33990914,0.00016997,2]
[362086707,1747986647499,-507.93830376,0.00016997,2]
[362086708,1747986647511,-503.30338917,0.00017094,2]
[362086709,1747986647521,-500.0,0.00017094,2]
[362086710,1747986647531,-500.0,0.00017094,2]
[362086711,1747986647542,-500.0,0.00017094,2]
[362086712,1747986647551,-2726.6,0.00017149,2]
[362086713,1747986647562,-2726.6,0.00017149,2]
[362086714,1747986647575,-414.14775151,0.00017229,2]
[362086715,1747986647585,-151.0,0.00017233,2]
[362086716,1747986647596,-151.0,0.00017233,2]
[362086717,1747986647607,-151.0,0.00017233,2]
[362086718,1747986647617,-381.221712,0.00017233,2]
[362086719,1747986647627,-381.221712,0.00017233,2]
[362086720,1747986647637,-192.608024,0.00017233,2]
[362086721,1747986647646,-192.608024,0.00017233,2]
[362086722,1747986647656,-622.32,0.00017259,2]
[362086723,1747986647666,-151.0,0.0001726,2]
[362086724,1747986647676,-430.0,0.0001726,2]
[362086725,1747986647686,-430.0,0.0001726,2]
[362086726,1747986647695,-613.167254,0.0001726,2]
[362086727,1747986647705,-613.167254,0.0001726,2]
[362086728,1747986647716,-151.0,0.0001726,2]
[362086729,1747986647725,-474.78914695,0.0001726,2]
[362086730,1747986647735,-430.0,0.0001726,2]
[362086731,1747986647745,-430.0,0.0001726,2]
[362086732,1747986647754,-2720.8,0.0001726,2]
[362086733,1747986647764,-2720.8,0.0001726,2]
[362086734,1747986647775,-2720.8,0.0001726,2]
[362086735,1747986647784,-2720.8,0.0001726,2]
[362086736,1747986647794,-2720.8,0.0001726,2]
[362086737,1747986647804,-2720.8,0.0001726,2]
[362086738,1747986647814,-2720.8,0.0001726,2]
[362086739,1747986647824,-2720.8,0.0001726,2]
[362086740,1747986647833,-384.52946,0.0001726,2]
[362086741,1747986647843,-430.0,0.0001726,2]
[362086742,1747986647852,-384.52946,0.0001726,2]
[362086743,1747986647864,-430.0,0.0001726,2]
[362086744,1747986647873,-151.0,0.0001726,2]
[362086745,1747986647883,-430.0,0.0001726,2]
[362086746,1747986647892,-430.0,0.0001726,2]
[362086747,1747986647902,-430.0,0.0001726,2]
[362086748,1747986647911,-430.0,0.0001726,2]
[362086749,1747986647922,-430.0,0.0001726,2]
[362086750,1747986647931,-207.898629,0.0001726,2]
[362086751,1747986647941,-430.0,0.0001726,2]
[362086752,1747986647951,-207.898629,0.0001726,2]
[362086753,1747986647961,-450.0,0.0001726,2]
[362086754,1747986647972,-430.0,0.0001726,2]
[362086755,1747986647982,-430.0,0.0001726,2]
[362086756,1747986647991,-430.0,0.0001726,2]
[362086757,1747986648002,-430.0,0.0001726,2]
[362086758,1747986648012,-430.0,0.0001726,2]
[362086759,1747986648022,-430.0,0.0001726,2]
[362086760,1747986648032,-627.55,0.0001726,2]
[362086761,1747986648043,-151.0,0.0001726,2]
[362086762,1747986648054,-470.0,0.0001726,2]
[362086763,1747986648064,-430.0,0.0001726,2]
[362086764,1747986648075,-430.0,0.0001726,2]
[362086765,1747986648085,-430.0,0.0001726,2]
[362086766,1747986648094,-430.0,0.0001726,2]
[362086767,1747986648104,-506.23,0.0001726,2]
[362086768,1747986648114,-251.92901184,0.0001726,2]
[362086769,1747986648124,-151.0,0.0001726,2]
[362086770,1747986648134,-430.0,0.0001726,2]
[362086771,1747986648144,-475.24276371,0.0001726,2]
[362086772,1747986648154,-430.0,0.0001726,2]
[362086773,1747986648163,-430.0,0.0001726,2]
[362086774,1747986648173,-430.0,0.0001726,2]
[362086775,1747986648183,-792.87,0.0001726,2]
[362086776,1747986648193,-632.28,0.0001726,2]
[362086777,1747986648202,-743.79,0.0001726,2]
[362086778,1747986648212,-151.0,0.0001726,2]
[362086779,1747986648223,-430.0,0.0001726,2]
[362086780,1747986648233,-430.0,0.0001726,2]
[362086781,1747986648244,-430.0,0.0001726,2]
[362086782,1747986648253,-430.0,0.0001726,2]
[362086783,1747986648264,-1029.770197,0.0001726,2]
[362086784,1747986648274,-2056.54,0.0001726,2]
[362086785,1747986648284,-1029.770197,0.0001726,2]
[362086786,1747986648294,-583.55,0.0001726,2]
[362086787,1747986648304,-751.02,0.0001726,2]
[362086788,1747986648314,-746.21,0.0001726,2]
[362086789,1747986648325,-430.0,0.0001726,2]
[362086790,1747986648335,-626.41,0.0001726,2]
[362086791,1747986648346,-430.0,0.0001726,2]
[362086792,1747986648355,-430.0,0.0001726,2]
[362086793,1747986648366,-494.43,0.0001726,2]
[362086794,1747986648376,-430.0,0.0001726,2]
[362086795,1747986648386,-430.0,0.0001726,2]
[362086796,1747986648396,-430.0,0.0001726,2]
[362086797,1747986648406,-430.0,0.0001726,2]
[362086798,1747986648417,-430.0,0.0001726,2]
[362086799,1747986648427,-430.0,0.0001726,2]
[362086800,1747986648437,-430.0,0.0001726,2]
[362086801,1747986648447,-2083.46,0.0001726,2]
[362086802,1747986648456,-430.0,0.0001726,2]
[362086803,1747986648466,-430.0,0.0001726,2]
[362086804,1747986648476,-656.86,0.0001726,2]
[362086805,1747986648486,-778.2,0.0001726,2]
[362086806,1747986648498,-430.0,0.0001726,2]
[362086807,1747986648508,-1637.49,0.0001726,2]
[362086808,1747986648518,-687.300448,0.0001726,2]
[362086809,1747986648528,-687.300448,0.0001726,2]
[362086810,1747986648538,-430.0,0.0001726,2]
[362086811,1747986648548,-622.32,0.00017351,2]
[362086812,1747986648558,-212.48480548,0.00017533,2]
[362086813,1747986648569,-160.0,0.00017533,2]
[362086814,1747986648579,-12647.66147447,0.00017533,2]
[362086815,1747986648590,-160.0,0.00017533,2]
[362086816,1747986648601,-160.0,0.00017533,2]
[362086817,1747986648611,-894.64583333,0.00017533,2]
[362086818,1747986648624,-160.0,0.00017533,2]
[362086819,1747986648636,-160.0,0.00017533,2]
[362086820,1747986648647,-160.0,0.00017533,2]
[362086821,1747986648658,-160.0,0.00017533,2]
[362086822,1747986648669,-314.57823366,0.00017533,2]
[362086823,1747986648679,-160.0,0.00017533,2]
[362086824,1747986648689,-422.85710789,0.00017533,2]
[362086825,1747986648699,-622.32,0.00017533,2]
[362086826,1747986648709,-151.0,0.00017534,2]
[362086827,1747986648719,-151.0,0.00017534,2]
[362086828,1747986648729,-151.0,0.00017534,2]
[362086829,1747986648739,-430.0,0.00017534,2]
[362086830,1747986648749,-151.0,0.00017534,2]
[362086831,1747986648759,-151.0,0.00017534,2]
[362086832,1747986648893,-158.95487,0.00017534,2]
[362086833,1747986648904,-158.95487,0.00017534,2]
[362086834,1747986648914,-613.167254,0.00017534,2]
[362086835,1747986648924,-184.160494,0.00017534,2]
[362086836,1747986648933,-613.167254,0.00017534,2]
[362086837,1747986648944,-151.0,0.00017534,2]
[362086838,1747986648953,-1255.488957,0.00017534,2]
[362086839,1747986648963,-1255.488957,0.00017534,2]
[362086840,1747986648973,-151.0,0.00017534,2]
[362086841,1747986648983,-2816.668241,0.00017534,2]
[362086842,1747986648993,-151.0,0.00017534,2]
[362086843,1747986649002,-2816.668241,0.00017534,2]
[362086844,1747986649012,-151.0,0.00017534,2]
[362086845,1747986649022,-151.0,0.00017534,2]
[362086846,1747986649032,-400.1363668,0.00017534,2]
[362086847,1747986649042,-381.221712,0.00017534,2]
[362086848,1747986649052,-381.221712,0.00017534,2]
[362086849,1747986649062,-494.61824171,0.00017534,2]
[362086850,1747986649072,-192.608024,0.00017534,2]